[Event "XX Sants Open 2018"]
[Site "Cotxeres de Sants"]
[Date "2018.08.26"]
[Round "10"]
[White "Tornay, Haizea"]
[Black "Lujan Moreno, Royer Manuel"]
[Result "0-1"]
[ECO "B23"]
[WhiteElo "1354"]
[BlackElo "1477"]
[Annotator "NA"]
[PlyCount "50"]
[EventDate "2018.08.17"]
[EventType "swiss"]
[EventCountry "ESP"]
[SourceTitle "playchess.com"]
[Source "ChessBase"]
[SourceQuality "1"]
[TimeControl "40/5400+30:1800+30"]

1. e4 c5 2. Nc3 e5 3. Bc4 d6 4. d3 Nc6 5. Nge2 Bg4 6. f3 Bh5 7. O-O Nf6 8. Ng3 Bg6 9. f4 exf4 10. Bxf4 Be7 11. Bg5 O-O 12. Bxf6 Bxf6 13. Nh5 Bd4+ 14. Kh1 Qg5 15. Nf4 Ne5 16. Bd5 Ng4 17. Ne6 Qh4 18. h3 Bh5 19. Qb1 fxe6 20. Bxe6+ Kh8 21. Bxg4 Bxg4 22. Qe1 Bf2 23. Rxf2 Rxf2 24. Kg1 Raf8 25. Nd1 Rxg2+ 0-1